bitfinex/quotes_SOLUSD_20240729
["timestamp","ask_amount","ask_price","bid_price","bid_amount"]
[1722285005181,12.59,186.74,186.67,12.42]
[1722285005786,12.59,186.74,186.68,1.07121501]
[1722285005990,0.17,186.74,186.67,12.42]
[1722285006189,12.42,186.77,186.69,12.42]
[1722285006499,16.1761,186.79,186.71,12.42]
[1722285006678,16.1761,186.79,186.73,12.42]
[1722285006878,12.42,186.81,186.73,12.42]
[1722285007587,15.5429,186.83,186.73,12.42]
[1722285007785,12.42,186.81,186.75,12.42]
[1722285008798,15.5429,186.83,186.75,12.42]
[1722285008799,33.3153,186.83,186.75,12.42]
[1722285009226,33.3153,186.83,186.73,20.0]
[1722285009227,12.42,186.84,186.77,12.42]
[1722285010085,5.3525,186.83,186.75,12.42]
[1722285011104,17.9421,186.84,186.75,12.42]
[1722285011289,0.17,186.83,186.75,32.42]
[1722285011909,12.42,186.84,186.77,12.42]
[1722285012099,12.42,186.84,186.78,1.07063307]
[1722285012302,12.42,186.84,186.77,12.42]
[1722285012505,17.7721,186.84,186.77,12.42]
[1722285012687,12.42,186.84,186.77,12.42]
[1722285015210,12.42,186.88,186.8,12.42]
[1722285015412,12.42,186.88,186.78,35.1688]
[1722285015707,12.42,186.84,186.78,15.1688]
[1722285016891,12.42,186.84,186.77,12.42]
[1722285017296,0.17,186.83,186.75,18.4378]
[1722285018910,12.42,186.84,186.75,18.4378]
[1722285019416,0.17,186.83,186.75,18.4378]
[1722285020898,12.42,186.84,186.75,18.4378]
[1722285021301,12.42,186.84,186.75,12.42]
[1722285022225,12.42,186.82,186.75,12.42]
[1722285022526,12.42,186.82,186.73,27.5888]
[1722285022730,12.42,186.82,186.73,12.42]
[1722285022932,12.42,186.8,186.71,18.6048]
[1722285023417,12.42,186.77,186.69,16.5517]
[1722285023633,12.42,186.76,186.68,12.42]
[1722285027118,12.42,186.74,186.67,12.42]
[1722285028706,12.42,186.74,186.64,21.88483128]
[1722285028707,12.42,186.73,186.64,21.88483128]
[1722285029023,45.17,186.72,186.65,12.42]
[1722285030516,12.42,186.74,186.66,12.42]
[1722285030726,12.42,186.75,186.67,12.42]
[1722285030915,45.17,186.74,186.68,12.42]
[1722285031220,0.17,186.74,186.68,12.42]
[1722285031420,20.502,186.78,186.7,12.42]
[1722285031421,12.42,186.77,186.7,12.42]
[1722285031616,32.42,186.77,186.7,12.42]
[1722285031812,32.42,186.77,186.68,12.42]
[1722285032725,45.0,186.76,186.68,12.42]
[1722285033398,0.17,186.75,186.68,12.42]
[1722285033818,0.17,186.75,186.64,61.88483128]
[1722285034009,0.17,186.75,186.68,12.42]
[1722285034212,45.0,186.76,186.7,12.42]
[1722285034416,12.59,186.77,186.7,12.42]
[1722285034627,0.17,186.76,186.7,12.42]
[1722285035516,12.42,186.77,186.71,1.07106822]
[1722285035715,15.3182,186.78,186.72,12.42]
[1722285035915,11.7253,186.81,186.74,12.42]
[1722285036123,5.3532,186.81,186.74,12.42]
[1722285036310,27.6779,186.82,186.75,1.07089726]
[1722285036514,33.0306,186.82,186.75,1.07089726]
[1722285037720,5.523,186.81,186.74,12.42]
[1722285039432,17.7727,186.82,186.76,12.42]
[1722285039930,5.5231,186.81,186.74,12.42]
[1722285040726,0.17,186.81,186.75,1.07080388]
[1722285040911,5.3527,186.82,186.76,12.42]
[1722285041927,0.17,186.83,186.77,1.07074306]
[1722285042434,45.17,186.83,186.77,1.07074306]
[1722285043021,50.5226,186.83,186.77,1.07074306]
[1722285043740,5.3527,186.82,186.76,12.42]
[1722285044429,50.5224,186.83,186.77,1.07071793]
[1722285044930,5.5224,186.83,186.77,1.07071793]
[1722285045431,17.7721,186.84,186.77,1.07071793]
[1722285045637,17.7721,186.84,186.78,12.42]
[1722285046127,5.3525,186.83,186.76,12.42]
[1722285052750,17.7721,186.84,186.76,12.42]
[1722285052920,12.42,186.84,186.76,12.42]
[1722285053135,12.42,186.84,186.77,1.07058955]
[1722285053343,12.42,186.84,186.76,12.42]
[1722285053945,12.42,186.84,186.78,12.42]
[1722285054570,12.42,186.85,186.79,1.07059048]
[1722285054757,12.42,186.85,186.8,1.07055417]
[1722285054948,12.42,186.89,186.82,12.42]
[1722285055967,17.7708,186.89,186.82,12.42]
[1722285058548,5.5204,186.9,186.83,1.0703716]
[1722285058749,5.5204,186.9,186.82,12.42]
[1722285060843,5.3507,186.89,186.82,12.42]
[1722285061066,5.3518,186.86,186.77,15.0326]
[1722285061249,17.7713,186.87,186.79,12.42]
[1722285062472,12.42,186.87,186.79,12.42]
[1722285062679,17.7713,186.87,186.79,12.42]
[1722285063254,12.42,186.87,186.79,12.42]
[1722285064397,12.42,186.87,186.77,15.0326]
[1722285064398,45.17,186.86,186.77,15.0326]
[1722285064562,45.17,186.86,186.78,12.42]
[1722285065964,45.17,186.86,186.78,13.49056768]
[1722285066470,0.17,186.86,186.8,12.42]
[1722285066675,12.42,186.87,186.81,1.07045301]
[1722285066987,12.42,186.87,186.8,12.42]
[1722285067762,12.42,186.87,186.81,1.07046694]
[1722285069385,12.42,186.87,186.8,12.42]
[1722285069584,12.42,186.91,186.82,12.42]
[1722285069881,20.0,186.9,186.82,12.42]
[1722285071468,12.42,186.89,186.82,12.42]
[1722285072069,20.0,186.9,186.82,12.42]
[1722285072285,32.42,186.9,186.82,12.42]
[1722285072463,37.7704,186.9,186.82,12.42]
[1722285072669,32.42,186.9,186.82,12.42]
[1722285074579,12.42,186.9,186.83,1.0702635]
[1722285075396,12.42,186.9,186.82,12.42]
[1722285076780,12.42,186.9,186.83,1.07026324]
[1722285078192,12.42,186.92,186.84,13.49025989]
[1722285078689,12.42,186.92,186.85,1.07013692]
[1722285078880,12.42,186.94,186.86,12.42]
[1722285079277,12.42,186.92,186.84,12.42]
[1722285080897,12.42,186.9,186.83,15.5517]
[1722285081203,12.42,186.92,186.84,12.42]
[1722285081703,12.42,186.9,186.83,15.5517]
[1722285082988,12.42,186.9,186.84,1.07024968]
[1722285083977,12.42,186.9,186.84,13.49024968]
[1722285084176,12.42,186.92,186.84,12.42]
[1722285084378,12.42,186.93,186.86,12.42]
[1722285085000,16.4346,186.96,186.86,32.42]
[1722285085001,12.42,186.95,186.86,32.42]
[1722285085204,20.0,186.94,186.86,32.42]
[1722285086697,5.3481,186.98,186.88,12.42]
[1722285087003,12.42,186.96,186.88,12.42]
[1722285087213,20.0,186.95,186.88,12.42]
[1722285088698,20.0,186.95,186.86,20.0]
[1722285088901,20.0,186.95,186.87,12.42]
[1722285089487,12.42,186.94,186.87,12.42]
[1722285090802,20.0,186.95,186.89,12.42]
[1722285091006,12.42,186.97,186.9,1.0698877]
[1722285091196,20.0,186.96,186.9,1.0698877]
[1722285091604,12.42,186.97,186.9,1.0698877]
[1722285092214,0.17,186.98,186.9,16.329]
[1722285092524,12.42,186.99,186.91,12.42]
[1722285093306,12.42,186.97,186.9,16.329]
[1722285096816,45.17,186.96,186.9,16.329]
[1722285097717,12.42,186.95,186.88,6.5692]
[1722285097899,12.42,186.93,186.86,15.6234]
[1722285099107,12.42,186.99,186.9,12.42]
[1722285099599,20.0,186.98,186.9,12.42]
[1722285100006,20.0,186.98,186.88,20.0]
[1722285100007,20.0,186.98,186.92,12.42]
[1722285100998,20.0,186.98,186.9,12.42]
[1722285101421,20.0,186.98,186.92,12.42]
[1722285103717,20.0,186.98,186.86,15.6234]
[1722285103718,12.42,186.97,186.86,15.6234]
[1722285103917,0.17,186.96,186.89,12.42]
[1722285104508,5.5187,186.96,186.89,12.42]
[1722285104715,12.42,186.95,186.86,15.6234]
[1722285104907,12.42,186.95,186.86,28.0434]
[1722285105109,12.42,186.95,186.87,12.42]
[1722285106907,12.42,186.93,186.86,15.6234]
[1722285107110,12.42,186.93,186.86,16.69347335]
[1722285108308,12.42,186.93,186.86,15.6234]
[1722285111514,12.42,186.92,186.84,6.3051]
[1722285112115,12.42,186.89,186.82,28.6385]
[1722285114329,12.42,186.9,186.82,28.6385]
[1722285117045,0.17,186.89,186.83,12.42]
[1722285117218,12.42,186.9,186.83,1.07033066]
[1722285117613,12.42,186.9,186.82,28.6385]
[1722285117930,12.42,186.9,186.82,16.2185]
[1722285118115,12.42,186.9,186.82,28.6385]
[1722285118827,12.42,186.9,186.79,12.0184081]
[1722285118828,12.42,186.88,186.81,12.42]
[1722285119018,12.42,186.88,186.8,12.42]
[1722285119741,12.42,186.88,186.81,1.07042828]
[1722285119937,12.59,186.89,186.81,13.49042828]
[1722285120146,57.42,186.88,186.81,13.49042828]
[1722285120442,12.42,186.88,186.81,13.49042828]
[1722285120862,12.42,186.88,186.82,1.07042801]
[1722285121154,0.17,186.89,186.82,13.49042801]
[1722285121453,45.17,186.89,186.82,13.49042801]
[1722285121864,45.17,186.89,186.82,12.42]
[1722285122429,12.42,186.9,186.82,12.42]
[1722285122929,12.42,186.9,186.83,1.07032693]
[1722285123469,12.42,186.9,186.82,12.42]
[1722285124031,12.42,186.9,186.83,1.07033173]
[1722285124331,12.42,186.9,186.84,1.07031794]
[1722285124533,12.42,186.9,186.82,12.42]
[1722285127456,12.42,186.9,186.83,1.07025157]
[1722285127655,12.42,186.9,186.82,12.42]
[1722285128159,12.59,186.91,186.83,12.42]
[1722285128364,20.0,186.9,186.83,12.42]
[1722285128863,32.42,186.9,186.82,12.42]
[1722285129057,32.42,186.9,186.83,1.07030373]
[1722285129236,32.42,186.9,186.83,13.49030373]
[1722285130469,20.0,186.9,186.84,1.07025144]
[1722285130756,20.17,186.91,186.84,1.07025144]
[1722285133062,25.5201,186.91,186.84,1.07025144]
[1722285133641,25.5201,186.91,186.83,12.42]
[1722285133843,45.0,186.9,186.82,12.42]
[1722285134044,0.17,186.89,186.82,12.42]
[1722285134349,5.5207,186.89,186.82,12.42]
[1722285135759,0.17,186.89,186.82,12.42]
[1722285137373,0.17,186.89,186.83,1.07039482]
[1722285137663,20.0,186.91,186.84,13.49026638]
[1722285137868,20.0,186.91,186.84,12.42]
[1722285139159,20.0,186.91,186.82,12.42]
[1722285139160,12.42,186.9,186.82,12.42]
[1722285139545,45.17,186.89,186.82,12.42]
[1722285141558,12.42,186.88,186.8,17.99733406]
[1722285142568,12.42,186.88,186.81,12.42]
[1722285143166,45.17,186.89,186.83,12.42]
[1722285143471,45.17,186.89,186.83,13.4903278]
[1722285144473,45.17,186.89,186.83,12.42]
[1722285145575,45.17,186.89,186.81,12.42]
[1722285146059,32.42,186.88,186.8,5.57733406]
[1722285146258,45.17,186.87,186.8,5.57733406]
[1722285150357,0.17,186.87,186.8,5.57733406]
[1722285151475,45.17,186.88,186.8,6.64783184]
[1722285151673,45.17,186.88,186.81,13.49049771]
[1722285151978,0.17,186.88,186.81,13.49049771]
[1722285152178,6.4183,186.9,186.81,13.49049771]
[1722285152486,12.42,186.91,186.83,12.42]
[1722285152774,12.42,186.91,186.84,1.07027224]
[1722285153482,0.17,186.9,186.83,12.42]
[1722285153661,0.17,186.9,186.8,25.57733406]
[1722285153866,0.17,186.9,186.82,12.42]
[1722285154084,12.42,186.89,186.82,12.42]
[1722285155967,12.42,186.89,186.8,12.42]
[1722285158870,0.17,186.88,186.8,12.42]
[1722285159875,0.17,186.88,186.81,1.0704498]
[1722285160080,12.42,186.89,186.82,12.42]
[1722285160386,12.42,186.89,186.83,1.07037112]
[1722285160775,20.0,186.93,186.84,12.42]
[1722285160988,20.0,186.93,186.8,40.0]
[1722285160989,22.591,186.94,186.86,12.42]
[1722285161166,12.42,186.96,186.88,12.42]
[1722285161683,12.42,186.96,186.89,1.0699898]
[1722285162064,11.3907,186.98,186.89,1.0699898]
[1722285162269,57.42,186.97,186.89,1.0699898]
[1722285162471,12.42,186.97,186.89,1.0699898]
[1722285162672,20.0,186.96,186.89,1.0699898]
[1722285163674,12.42,186.95,186.85,15.0403]
[1722285163877,12.42,186.95,186.87,12.42]
[1722285164082,17.769,186.95,186.85,15.0403]
[1722285164273,0.17,186.94,186.86,33.49013483]
[1722285164480,0.17,186.94,186.86,32.42]
[1722285165070,0.17,186.94,186.86,12.42]
[1722285165891,12.42,186.93,186.81,28.04151298]
[1722285166073,12.42,186.91,186.84,12.42]
[1722285166988,12.42,186.91,186.85,1.07022318]
[1722285167573,0.17,186.92,186.86,1.07022065]
[1722285168590,0.17,186.92,186.85,12.42]
[1722285169574,0.17,186.92,186.81,20.0]
[1722285169575,0.17,186.92,186.84,12.42]
[1722285170194,0.17,186.92,186.86,12.42]
[1722285170390,45.17,186.93,186.86,13.49015976]
[1722285170597,0.17,186.93,186.86,13.49015976]
[1722285170805,12.42,186.94,186.86,13.49015976]
[1722285171381,12.42,186.94,186.87,1.07009865]
[1722285172485,12.42,186.94,186.86,12.42]
[1722285174183,12.42,186.94,186.87,1.07009918]
[1722285174787,12.42,186.94,186.86,12.42]
[1722285176099,12.42,186.94,186.87,1.07005955]
[1722285177099,0.17,186.95,186.88,12.42]
[1722285177405,45.17,186.95,186.88,12.42]
[1722285177808,0.17,186.95,186.89,1.07005261]
[1722285179491,5.5192,186.95,186.86,1.07003551]
[1722285179694,17.7695,186.94,186.86,12.42]
[1722285180006,0.17,186.93,186.86,13.49010368]
[1722285183704,0.17,186.93,186.88,12.42]
[1722285183906,45.17,186.94,186.88,12.42]
[1722285186589,57.59,186.94,186.86,12.42]
[1722285188515,45.17,186.94,186.86,12.42]
[1722285188815,0.17,186.94,186.88,12.42]
[1722285189310,32.42,186.96,186.88,12.42]
[1722285189507,0.17,186.95,186.88,12.42]
[1722285190809,0.17,186.95,186.89,1.07000781]
[1722285191104,0.17,186.95,186.88,12.42]
[1722285193212,0.17,186.95,186.89,1.07000972]
[1722285193414,0.17,186.95,186.88,12.42]
[1722285193601,0.17,186.95,186.89,1.07000342]
[1722285193911,45.17,186.95,186.87,12.42]
[1722285194113,50.519,186.95,186.87,12.42]
[1722285198101,0.17,186.95,186.88,1.07011126]
[1722285198299,0.17,186.95,186.87,12.42]
[1722285198722,0.17,186.95,186.85,20.0]
[1722285198912,0.17,186.95,186.87,12.42]
[1722285200716,6.0426,186.98,186.89,12.42]
[1722285200717,20.0,186.97,186.89,12.42]
[1722285201108,20.0,186.97,186.89,32.42]
[1722285202621,20.0,186.97,186.91,12.42]
[1722285203705,20.0,186.97,186.86,22.57461582]
[1722285203706,20.0,186.97,186.87,20.0]
[1722285203918,20.0,186.97,186.9,12.42]
[1722285206004,20.0,186.97,186.87,20.0]
[1722285206227,20.0,186.97,186.9,12.42]
[1722285206718,18.6326,186.98,186.9,12.42]
[1722285206931,0.17,186.97,186.91,1.06988323]
[1722285208823,12.42,186.98,186.92,12.42]
[1722285209806,15.3572,186.99,186.86,21.5048]
[1722285209807,12.42,186.96,186.86,21.5048]
[1722285210007,12.42,186.96,186.88,12.42]
[1722285213836,0.17,186.95,186.88,12.42]
[1722285214561,0.17,186.95,186.89,1.07000881]
[1722285217240,0.17,186.95,186.88,12.42]
[1722285217626,0.17,186.95,186.84,8.04066163]
[1722285217823,12.42,186.94,186.85,20.0]
[1722285218040,12.42,186.92,186.83,5.58753518]
[1722285218543,12.42,186.92,186.84,12.42]
[1722285219830,12.42,186.92,186.85,12.42]
[1722285223135,12.42,186.92,186.83,5.58753518]
[1722285223335,12.42,186.92,186.85,12.42]
[1722285223923,0.17,186.91,186.84,12.42]
[1722285224445,28.5351,186.93,186.85,12.42]
[1722285224619,0.17,186.92,186.85,12.42]
[1722285226129,0.17,186.92,186.83,12.42]
[1722285226130,12.42,186.91,186.83,12.42]
[1722285226333,0.17,186.9,186.83,12.42]
[1722285228150,28.5351,186.93,186.85,12.42]
[1722285228451,0.17,186.92,186.85,12.42]
[1722285229335,12.42,186.91,186.81,5.58648859]
[1722285229539,12.42,186.88,186.78,23.91272279]
[1722285229733,0.17,186.87,186.8,12.42]
[1722285230452,15.8673,186.87,186.8,12.42]
[1722285231548,15.6973,186.87,186.82,12.42]
[1722285232331,15.6973,186.87,186.83,12.42]
[1722285232838,6.536,186.89,186.83,12.42]
[1722285233043,6.536,186.89,186.84,12.42]
[1722285234837,0.9322077,186.98,186.84,12.42]
[1722285234838,20.583,186.97,186.88,12.42]
[1722285235149,20.583,186.97,186.84,32.42]
[1722285235150,33.003,186.97,186.9,12.42]
[1722285236347,45.17,186.96,186.9,12.42]
[1722285237435,15.2346,186.97,186.91,1.06998408]
[1722285237657,0.772166,187.0,186.93,12.42]
[1722285238944,0.772166,187.0,186.94,1.0697031]
[1722285239561,20.772166,187.0,186.94,1.0697031]
[1722285241064,20.772166,187.0,186.93,12.42]
[1722285245857,26.119866,187.0,186.93,12.42]
[1722285246059,12.42,186.99,186.88,41.7353]
[1722285246255,17.7679,186.99,186.91,12.42]
[1722285246767,12.42,186.99,186.91,12.42]
[1722285247162,17.7678,186.99,186.91,12.42]
[1722285248076,12.42,186.99,186.91,12.42]
[1722285248370,12.42,186.99,186.91,32.42]
[1722285248752,20.772166,187.0,186.91,32.42]
[1722285248971,13.192166,187.0,186.91,32.42]
[1722285249766,18.539766,187.0,186.91,32.42]
[1722285250151,5.3481,186.99,186.91,12.42]
[1722285250351,0.17,186.98,186.88,41.7353]
[1722285250557,0.17,186.98,186.91,12.42]
[1722285250754,0.17,186.98,186.88,41.7353]
[1722285250965,12.59,186.98,186.91,12.42]
[1722285251750,0.772166,187.0,186.91,12.42]
[1722285251960,12.42,186.99,186.91,12.42]
[1722285252451,12.42,186.99,186.88,61.7353]
[1722285252452,0.772166,187.0,186.94,12.42]
[1722285252658,0.772166,187.0,186.93,12.42]
[1722285255481,12.42,186.99,186.91,12.42]
[1722285255971,12.42,186.99,186.93,12.42]
[1722285256359,0.772166,187.0,186.93,12.42]
[1722285256563,13.192166,187.0,186.93,12.42]
[1722285257556,0.772166,187.0,186.93,12.42]
[1722285260163,13.192166,187.0,186.93,12.42]
[1722285260565,18.539766,187.0,186.93,12.42]
[1722285260891,12.42,186.98,186.88,21.7353]
[1722285261072,12.42,186.98,186.9,12.42]
[1722285263065,13.192166,187.0,186.92,12.42]
[1722285263459,0.17,186.99,186.92,12.42]
[1722285264986,0.17,186.99,186.88,21.7353]
[1722285264987,12.42,186.98,186.9,12.42]
[1722285266580,12.42,186.97,186.9,12.42]
[1722285273785,12.42,186.95,186.87,5.58291178]
[1722285273965,12.42,186.95,186.87,18.00291178]
[1722285274370,12.42,186.95,186.87,5.58291178]
[1722285274669,12.42,186.95,186.87,18.00291178]
[1722285276105,12.42,186.94,186.87,12.42]
[1722285276596,12.42,186.93,186.85,12.42]
[1722285276906,20.6348,186.96,186.84,12.42]
[1722285276907,12.59,186.92,186.84,12.42]
[1722285277386,12.42,186.91,186.84,12.42]
[1722285278187,12.42,186.91,186.83,16.4589]
[1722285278400,12.42,186.88,186.81,12.42]
[1722285279274,27.5361,186.89,186.81,12.42]
[1722285279475,45.17,186.88,186.81,12.42]
[1722285282496,57.59,186.88,186.81,12.42]
[1722285284195,15.1161,186.89,186.83,12.42]
[1722285285191,15.1161,186.89,186.83,13.4903171]
[1722285286377,15.1161,186.89,186.83,12.42]
[1722285287279,15.1161,186.89,186.82,12.42]
[1722285287494,32.8869,186.89,186.78,48.26108704]
[1722285287694,17.771,186.88,186.8,12.42]
[1722285288114,5.3513,186.87,186.8,12.42]
[1722285289506,17.941,186.88,186.8,12.42]
[1722285289684,45.17,186.87,186.8,12.42]
[1722285290577,15.1161,186.89,186.84,12.42]
[1722285291194,6.2218,186.92,186.85,12.42]
[1722285291779,18.6418,186.92,186.84,12.42]
[1722285292896,23.9917,186.92,186.84,12.42]
[1722285294506,27.6231,186.94,186.86,12.42]
[1722285296408,32.9724,186.94,186.86,12.42]
[1722285296905,15.2031,186.94,186.86,12.42]
[1722285297146,15.2031,186.94,186.85,20.0]
[1722285297147,15.2031,186.94,186.88,12.42]
[1722285298381,17.7688,186.96,186.88,12.42]
[1722285298587,20.0,186.95,186.88,12.42]
[1722285298786,25.3491,186.95,186.88,12.42]
[1722285299901,5.3491,186.95,186.88,12.42]
[1722285300700,5.3494,186.94,186.88,12.42]
[1722285303008,5.3496,186.93,186.88,12.42]
[1722285306909,12.42,186.96,186.89,12.42]
[1722285307116,5.3492,186.95,186.9,12.42]
[1722285307314,15.1284,186.98,186.9,12.42]
[1722285307514,15.1284,186.98,186.91,1.06986608]
[1722285308014,13.192166,187.0,186.92,12.42]
[1722285309300,5.3484,186.97,186.92,12.42]
[1722285309716,12.42,186.93,186.89,20.0]
[1722285309917,12.42,186.93,186.82,5.5746518]
[1722285309918,16.1749,186.88,186.82,5.5746518]
[1722285310215,11.92,186.85,186.77,28.107]
[1722285310517,17.2719,186.85,186.77,28.107]
[1722285310898,17.7716,186.86,186.79,12.42]
[1722285311320,5.3516,186.86,186.8,12.42]
[1722285312317,12.42,186.87,186.8,12.42]
[1722285312523,21.5261,186.88,186.79,12.42]
[1722285312524,17.7717,186.86,186.79,12.42]
[1722285312702,12.42,186.86,186.78,12.42]
[1722285313631,17.7718,186.86,186.79,12.42]
[1722285313930,17.772,186.85,186.78,12.42]
[1722285314920,12.42,186.85,186.78,12.42]
[1722285315414,28.5949,186.88,186.81,12.42]
[1722285315926,12.42,186.87,186.8,12.42]
[1722285316636,16.1749,186.88,186.8,12.42]
[1722285316836,28.5949,186.88,186.81,12.42]
[1722285317006,0.17,186.92,186.84,12.42]
[1722285317211,0.17,186.92,186.85,1.07017095]
[1722285317212,12.42,186.91,186.85,1.07017095]
[1722285317414,12.42,186.9,186.83,12.42]
[1722285318537,12.42,186.9,186.82,12.42]
[1722285319045,12.42,186.89,186.82,12.42]
[1722285319820,12.42,186.9,186.82,12.42]
[1722285323208,11.92,186.9,186.82,12.42]
[1722285324028,11.92,186.9,186.83,12.42]
[1722285326626,0.17,186.91,186.83,12.42]
[1722285326828,12.42,186.9,186.83,12.42]
[1722285329034,65.17,186.92,186.84,13.49023758]
[1722285329221,77.59,186.92,186.85,12.42]
[1722285330211,12.42,186.91,186.84,12.42]
[1722285330817,77.59,186.92,186.84,12.42]
[1722285331016,12.42,186.91,186.84,12.42]
[1722285331218,17.7702,186.91,186.79,20.0]
[1722285331527,5.3502,186.91,186.79,20.0]
[1722285332039,70.5199,186.92,186.79,20.0]
[1722285332242,12.42,186.9,186.83,12.42]
[1722285332539,12.42,186.91,186.83,12.42]
[1722285335823,12.42,186.9,186.77,15.687]
[1722285336027,12.59,186.9,186.82,12.42]
[1722285336229,12.42,186.9,186.82,12.42]
[1722285343545,11.92,186.9,186.82,12.42]
[1722285345036,12.42,186.91,186.83,12.42]
[1722285345250,65.17,186.9,186.83,12.42]
[1722285346153,16.1283,186.93,186.86,12.42]
[1722285346735,28.5483,186.93,186.86,12.42]
[1722285347437,16.1283,186.93,186.86,12.42]
[1722285347638,16.1283,186.93,186.87,1.07009854]
[1722285348067,16.1283,186.93,186.88,13.49009706]
[1722285349333,16.1283,186.93,186.88,12.42]
[1722285350343,15.6283,186.93,186.88,12.42]
[1722285353164,11.5997,186.96,186.89,12.42]
[1722285353378,77.59,186.95,186.88,12.42]
[1722285353741,15.0178,186.99,186.93,12.42]
[1722285354078,0.272166,187.0,186.95,12.42]
[1722285354645,0.272166,187.0,186.98,12.42]
[1722285354856,0.272166,187.0,186.99,12.42]
[1722285357861,20.3631,187.08,186.99,12.42]
[1722285357862,20.135266,187.08,186.99,12.42]
[1722285358060,32.555266,187.08,187.01,12.42]
[1722285358753,14.789966,187.08,187.01,12.42]
[1722285358953,20.0,187.07,187.01,12.42]
[1722285361187,19.5,187.07,187.01,12.42]
[1722285363389,19.5,187.07,187.0,12.42]
[1722285363897,19.5,187.07,187.01,12.42]
[1722285364099,19.0,187.07,187.01,12.42]
[1722285364996,19.0,187.07,186.94,1.06934585]
[1722285364997,12.42,187.06,186.94,20.0]
[1722285365199,12.42,187.05,186.97,12.42]
[1722285366018,12.42,187.05,186.98,12.42]
[1722285366298,31.59,187.07,186.99,12.42]
[1722285366481,19.0,187.07,187.01,12.42]
[1722285367990,19.0,187.07,186.92,2.0784167]
[1722285367991,12.42,187.02,186.9,26.1207]
[1722285368196,12.42,187.01,186.94,12.42]
[1722285368498,12.42,186.99,186.92,12.42]
[1722285369674,12.42,187.0,186.93,12.42]
[1722285369873,12.42,187.01,186.94,12.42]
[1722285370072,12.42,187.01,186.95,12.42]
[1722285371377,12.42,187.02,186.95,12.42]
[1722285372796,12.42,187.01,186.94,12.42]
[1722285373601,12.42,187.0,186.93,12.42]
[1722285373908,12.42,187.0,186.92,12.42]
[1722285374207,12.42,186.99,186.92,12.42]
[1722285375304,12.42,186.99,186.9,6.1207]
[1722285375305,12.42,187.01,186.95,12.42]
[1722285375517,0.17,187.02,186.96,13.48961849]
[1722285375683,12.42,187.04,186.97,13.48962429]